fUSD/lending_fUSD_20250512
["ID","MTS","AMOUNT","RATE_DAILY","PERIOD"]
[360868926,1747090232923,-112.40048435,0.00013674,2]
[360868932,1747090232945,-293.23634756,0.00013674,2]
[360868938,1747090232969,-3056.27471942,0.00013674,2]
[360868941,1747090232978,-150.99,0.00013683,2]
[360868944,1747090232988,-406.8478247,0.00013684,2]
[360868946,1747090232999,-22100.68,0.00013684,2]
[360868949,1747090233008,-217.17586426,0.00013691,2]
[360868952,1747090233017,-151.0,0.00013691,2]
[360868954,1747090233027,-183.026299,0.00013691,2]
[360868957,1747090233037,-183.026299,0.00013691,2]
[360868960,1747090233046,-808.78666687,0.00013697,2]
[360869274,1747090237430,-1396.35233313,0.00013697,2]
[360869275,1747090237439,-4.36505603,0.00013697,2]
[360869276,1747090237451,-155.98994397,0.00013697,2]
[360869277,1747090237460,-151.0,0.00013698,2]
[360869278,1747090237469,-151.0,0.00013698,2]
[360869279,1747090237479,-151.0,0.00013698,2]
[360869280,1747090237488,-151.0,0.00013698,2]
[360869281,1747090237497,-183.026299,0.00013698,2]
[360869282,1747090237507,-183.026299,0.00013698,2]
[360869283,1747090237516,-183.026299,0.00013698,2]
[360869284,1747090237526,-183.026299,0.00013698,2]
[360869285,1747090237535,-183.026299,0.00013698,2]
[360869286,1747090237545,-183.026299,0.00013698,2]
[360869287,1747090237554,-183.026299,0.00013698,2]
[360869288,1747090237567,-183.026299,0.00013698,2]
[360869289,1747090237576,-183.026299,0.00013698,2]
[360869290,1747090237586,-183.026299,0.00013698,2]
[360869291,1747090237595,-67.34839314,0.00013698,2]
[360869292,1747090237614,-115.67790586,0.00013698,2]
[360869293,1747090237623,-183.026299,0.00013698,2]
[360869294,1747090237633,-183.026299,0.00013698,2]
[360869295,1747090237642,-183.026299,0.00013698,2]
[360869296,1747090237651,-183.026299,0.00013698,2]
[360869297,1747090237661,-183.026299,0.00013698,2]
[360869298,1747090237671,-183.026299,0.00013698,2]
[360869299,1747090237682,-183.026291,0.00013698,2]
[360869300,1747090237691,-400.0,0.00013698,2]
[360869301,1747090237700,-400.0,0.00013698,2]
[360869302,1747090237710,-400.0,0.00013698,2]
[360869303,1747090237719,-400.0,0.00013698,2]
[360869304,1747090237729,-400.0,0.00013698,2]
[360869305,1747090237738,-400.0,0.00013698,2]
[360869306,1747090237747,-400.0,0.00013698,2]
[360869307,1747090237757,-400.0,0.00013698,2]
[360869308,1747090237766,-400.0,0.00013698,2]
[360869309,1747090237776,-400.0,0.00013698,2]
[360869310,1747090237785,-400.0,0.00013698,2]
[360869311,1747090237794,-400.0,0.00013698,2]
[360869312,1747090237803,-400.0,0.00013698,2]
[360869313,1747090237812,-400.0,0.00013698,2]
[360869314,1747090237822,-400.0,0.00013698,2]
[360869315,1747090237831,-400.0,0.00013698,2]
[360869316,1747090237841,-400.0,0.00013698,2]
[360869318,1747090237850,-400.0,0.00013698,2]
[360869319,1747090237859,-400.0,0.00013698,2]
[360869320,1747090237868,-400.0,0.00013698,2]
[360869321,1747090237878,-241.05442539,0.00013698,2]
[360869322,1747090237888,-400.0,0.00013698,2]
[360869323,1747090237897,-400.0,0.00013698,2]
[360869324,1747090237906,-400.0,0.00013698,2]
[360869325,1747090237915,-400.0,0.00013698,2]
[360869326,1747090237925,-400.0,0.00013698,2]
[360869327,1747090237935,-400.0,0.00013698,2]
[360869328,1747090237944,-403.02675574,0.00013698,2]
[360869329,1747090237953,-400.0,0.00013698,2]
[360869330,1747090237963,-400.0,0.00013698,2]
[360869331,1747090237972,-400.0,0.00013698,2]
[360869332,1747090237982,-400.0,0.00013698,2]
[360869333,1747090237995,-400.0,0.00013698,2]
[360869334,1747090238004,-181.47039778,0.00013698,2]
[360869336,1747090238014,-400.0,0.00013698,2]
[360869338,1747090238023,-292.78088434,0.00013698,2]
[360869340,1747090238033,-446.86,0.00013698,2]
[360869342,1747090238043,-214.02562421,0.00013698,2]
[360869344,1747090238057,-185.97437579,0.00013698,2]
[360869346,1747090238068,-400.0,0.00013698,2]
[360869348,1747090238077,-487.39,0.00013698,2]
[360869350,1747090238086,-502.92841314,0.00013698,2]
[360869352,1747090238096,-400.0,0.00013698,2]
[360869353,1747090238105,-400.0,0.00013698,2]
[360869354,1747090238114,-400.0,0.00013698,2]
[360869355,1747090238123,-170.14,0.00013698,2]
[360869356,1747090238131,-400.0,0.00013698,2]
[360869357,1747090238141,-540.94,0.00013698,2]
[360869358,1747090238150,-477.58515554,0.00013698,2]
[360869359,1747090238159,-309.69896924,0.00013698,2]
[360869360,1747090238174,-90.30103076,0.00013698,2]
[360869361,1747090238183,-400.0,0.00013698,2]
[360869362,1747090238192,-400.0,0.00013698,2]
[360869363,1747090238201,-162.93294249,0.00013698,2]
[360869364,1747090238210,-400.0,0.00013698,2]
[360869365,1747090238219,-462.62263664,0.00013698,2]
[360869367,1747090238228,-400.0,0.00013698,2]
[360869369,1747090238237,-400.0,0.00013698,2]
[360869371,1747090238245,-400.0,0.00013698,2]
[360869373,1747090238254,-400.0,0.00013698,2]
[360869375,1747090238263,-400.0,0.00013698,2]
[360869377,1747090238272,-400.0,0.00013698,2]
[360869378,1747090238281,-400.0,0.00013698,2]
[360869380,1747090238290,-400.0,0.00013698,2]
[360869382,1747090238299,-400.0,0.00013698,2]
[360869384,1747090238308,-400.0,0.00013698,2]
[360869385,1747090238316,-883.65,0.00013698,2]
[360869387,1747090238325,-400.0,0.00013698,2]
[360869389,1747090238335,-400.0,0.00013698,2]
[360869390,1747090238345,-400.0,0.00013698,2]
[360869391,1747090238354,-400.0,0.00013698,2]
[360869392,1747090238363,-400.0,0.00013698,2]
[360869393,1747090238373,-400.0,0.00013698,2]
[360869394,1747090238382,-153.89961934,0.00013698,2]
[360869395,1747090238391,-1000.0,0.00013698,2]
[360869396,1747090238400,-400.0,0.00013698,2]
[360869397,1747090238409,-500.0,0.00013698,2]
[360869398,1747090238418,-518.90956423,0.00013698,2]
[360869399,1747090238430,-352.84710549,0.00013698,2]
[360869401,1747090239600,-209.08605061,0.00013599,2]
[360869402,1747090239610,-492.71333028,0.00013698,2]
[360869403,1747090239619,-400.0,0.00013698,2]
[360869404,1747090239629,-205.24813216,0.00013698,2]
[360869405,1747090239641,-194.75186784,0.00013698,2]
[360869406,1747090239651,-400.0,0.00013698,2]
[360869407,1747090239660,-648.75,0.00013698,2]
[360869408,1747090239670,-133.31472781,0.00013698,2]
[360869409,1747090239734,-88.12527219,0.00013698,2]
[360869410,1747090239744,-300.73377624,0.00013698,2]
[360869411,1747090239754,-400.0,0.00013698,2]
[360869412,1747090239763,-400.0,0.00013698,2]
[360869413,1747090239773,-400.0,0.00013698,2]
[360869414,1747090239782,-400.0,0.00013698,2]
[360869415,1747090239792,-534.9,0.00013698,2]
[360869416,1747090239801,-400.0,0.00013698,2]
[360869417,1747090239810,-500.0,0.00013698,2]
[360869418,1747090239819,-500.0,0.00013698,2]
[360869419,1747090239829,-403.02,0.00013698,2]
[360869420,1747090239838,-151.0,0.00013698,2]
[360869421,1747090239848,-626.91,0.00013698,2]
[360869422,1747090239857,-400.0,0.00013698,2]
[360869423,1747090239866,-416.21,0.00013698,2]
[360869424,1747090239876,-151.0,0.00013698,2]
[360869425,1747090239885,-151.0,0.00013698,2]
[360869426,1747090239895,-698.81,0.00013698,2]
[360869427,1747090239904,-151.0,0.00013698,2]
[360869428,1747090239913,-151.0,0.00013698,2]
[360869429,1747090239923,-151.0,0.00013698,2]
[360869430,1747090239932,-151.0,0.00013698,2]
[360869431,1747090239942,-151.0,0.00013698,2]
[360869432,1747090239951,-151.0,0.00013698,2]
[360869433,1747090239961,-151.0,0.00013698,2]
[360869434,1747090239971,-151.0,0.00013698,2]
[360869435,1747090239981,-151.0,0.00013698,2]
[360869436,1747090239993,-151.0,0.00013698,2]
[360869437,1747090240008,-151.0,0.00013698,2]
[360869438,1747090240018,-400.0,0.00013698,2]
[360869439,1747090240027,-151.0,0.00013698,2]
[360869440,1747090240036,-151.0,0.00013698,2]
[360869441,1747090240046,-400.0,0.00013698,2]
[360869442,1747090240055,-400.0,0.00013698,2]
[360869443,1747090240065,-615.59,0.00013698,2]
[360869444,1747090240076,-400.0,0.00013698,2]
[360869445,1747090240086,-308.25632545,0.00013698,2]
[360869446,1747090240095,-610.58,0.00013698,2]
[360869447,1747090240105,-400.0,0.00013698,2]
[360869448,1747090240114,-400.0,0.00013698,2]
[360869449,1747090240123,-400.0,0.00013698,2]
[360869450,1747090240132,-1281.75,0.00013698,2]
[360869451,1747090240141,-1077.2,0.00013698,2]
[360869452,1747090240150,-400.0,0.00013698,2]
[360869453,1747090240159,-400.0,0.00013698,2]
[360869454,1747090240168,-297.60008827,0.00013698,2]
[360869455,1747090240177,-400.0,0.00013698,2]
[360869456,1747090240186,-450.47,0.00013698,2]
[360869457,1747090240195,-400.0,0.00013698,2]
[360869458,1747090240205,-463.72,0.00013698,2]
[360869459,1747090240214,-400.0,0.00013698,2]
[360869460,1747090240224,-400.0,0.00013698,2]
[360869461,1747090240233,-400.0,0.00013698,2]
[360869462,1747090240242,-400.0,0.00013698,2]
[360869463,1747090240251,-400.0,0.00013698,2]
[360869464,1747090240260,-400.0,0.00013698,2]
[360869465,1747090240269,-400.0,0.00013698,2]
[360869466,1747090240278,-400.0,0.00013698,2]
[360869467,1747090240287,-400.0,0.00013698,2]
[360869468,1747090240296,-400.0,0.00013698,2]
[360869469,1747090240306,-400.0,0.00013698,2]
[360869470,1747090240315,-1108.94,0.00013698,2]
[360869471,1747090240324,-755.78,0.00013698,2]
[360869472,1747090240333,-400.0,0.00013698,2]
[360869474,1747090240342,-400.0,0.00013698,2]
[360869475,1747090240351,-617.20697325,0.00013698,2]
[360869476,1747090240366,-2571.75,0.00013698,2]
[360869527,1747090245380,-209.08605059,0.00013626,2]
[360869528,1747090245390,-6811.04302675,0.00013698,2]
[360869529,1747090245399,-400.0,0.00013698,2]
[360869530,1747090245409,-400.0,0.00013698,2]
[360869532,1747090245418,-10000.0,0.00013698,2]
[360869534,1747090245428,-400.0,0.00013698,2]
[360869535,1747090245437,-787.18,0.00013698,2]
[360869536,1747090245447,-400.0,0.00013698,2]
[360869537,1747090245456,-10000.0,0.00013698,2]
[360869538,1747090245465,-400.0,0.00013698,2]
[360869539,1747090245474,-400.0,0.00013698,2]
[360869540,1747090245484,-400.0,0.00013698,2]
[360869541,1747090245493,-10000.0,0.00013698,2]
[360869542,1747090245502,-400.0,0.00013698,2]
[360869543,1747090245512,-400.0,0.00013698,2]
[360869544,1747090245522,-499.68,0.00013698,2]
[360869545,1747090245531,-400.0,0.00013698,2]
[360869546,1747090245541,-936.95,0.00013698,2]
[360869547,1747090245550,-400.0,0.00013698,2]
[360869548,1747090245560,-400.0,0.00013698,2]
[360869549,1747090245570,-400.0,0.00013698,2]
[360869550,1747090245579,-848.11,0.00013698,2]
[360869551,1747090245589,-400.0,0.00013698,2]
[360869552,1747090245599,-400.0,0.00013698,2]
[360869553,1747090245608,-400.0,0.00013698,2]
[360869554,1747090245618,-1083.17,0.00013698,2]
[360869555,1747090245627,-400.0,0.00013698,2]
[360869556,1747090245636,-400.0,0.00013698,2]
[360869557,1747090245645,-926.94,0.00013698,2]
[360869558,1747090245654,-420.95,0.00013698,2]
[360869559,1747090245664,-400.0,0.00013698,2]
[360869560,1747090245673,-400.0,0.00013698,2]
[360869561,1747090245682,-400.0,0.00013698,2]
[360869562,1747090245693,-400.0,0.00013698,2]
[360869563,1747090245702,-460.77358364,0.00013698,2]
[360869564,1747090245711,-400.0,0.00013698,2]
[360869565,1747090245721,-400.0,0.00013698,2]
[360869566,1747090245730,-400.0,0.00013698,2]
[360869567,1747090245739,-400.0,0.00013698,2]
[360869568,1747090245748,-400.0,0.00013698,2]
[360869569,1747090245757,-603.5,0.00013698,2]
[360869570,1747090245766,-576.3,0.00013698,2]
[360869571,1747090245775,-400.0,0.00013698,2]
[360869572,1747090245784,-400.0,0.00013698,2]
[360869573,1747090245793,-400.0,0.00013698,2]
[360869574,1747090245802,-400.0,0.00013698,2]
[360869575,1747090245811,-400.0,0.00013698,2]
[360869576,1747090245820,-400.0,0.00013698,2]
[360869577,1747090245830,-151.0,0.00013698,2]
[360869578,1747090245839,-400.0,0.00013698,2]
[360869579,1747090245848,-400.0,0.00013698,2]
[360869580,1747090245857,-400.0,0.00013698,2]
[360869581,1747090245866,-400.0,0.00013698,2]
[360869582,1747090245875,-400.0,0.00013698,2]
[360869583,1747090245884,-400.0,0.00013698,2]
[360869584,1747090245893,-333.54,0.00013698,2]
[360869585,1747090245903,-400.0,0.00013698,2]
[360869586,1747090245912,-151.0,0.00013698,2]
[360869587,1747090245921,-151.0,0.00013698,2]
[360869588,1747090245930,-400.0,0.00013698,2]
[360869589,1747090245939,-509.02968002,0.00013698,2]
[360869590,1747090245948,-400.0,0.00013698,2]
[360869591,1747090245957,-400.0,0.00013698,2]
[360869592,1747090245966,-400.0,0.00013698,2]
[360869593,1747090245975,-400.0,0.00013698,2]
[360869595,1747090245984,-400.0,0.00013698,2]
[360869596,1747090245997,-400.0,0.00013698,2]
[360869598,1747090246007,-400.0,0.00013698,2]
[360869599,1747090246016,-400.0,0.00013698,2]
[360869600,1747090246025,-400.0,0.00013698,2]
[360869602,1747090246034,-400.0,0.00013698,2]
[360869603,1747090246043,-400.0,0.00013698,2]
[360869605,1747090246052,-400.0,0.00013698,2]
[360869606,1747090246061,-400.0,0.00013698,2]
[360869608,1747090246072,-400.0,0.00013698,2]
[360869610,1747090246081,-400.0,0.00013698,2]
[360869611,1747090246090,-400.0,0.00013698,2]
[360869613,1747090246099,-400.0,0.00013698,2]
[360869614,1747090246108,-501.55,0.00013698,2]
[360869616,1747090246117,-287.08979334,0.00013698,2]
[360869618,1747090246126,-400.0,0.00013698,2]
[360869619,1747090246134,-400.0,0.00013698,2]
[360869621,1747090246143,-400.0,0.00013698,2]
[360869623,1747090246152,-400.0,0.00013698,2]
[360869624,1747090246162,-400.0,0.00013698,2]
[360869626,1747090246171,-400.0,0.00013698,2]
[360869627,1747090246180,-400.0,0.00013698,2]
[360869629,1747090246189,-400.0,0.00013698,2]
[360869631,1747090246199,-400.0,0.00013698,2]
[360869632,1747090246208,-400.0,0.00013698,2]
[360869634,1747090246220,-503.27595892,0.00013698,2]
[360869636,1747090246229,-400.0,0.00013698,2]
[360869638,1747090246238,-400.0,0.00013698,2]
[360869639,1747090246247,-400.0,0.00013698,2]
[360869641,1747090246257,-400.0,0.00013698,2]
[360869643,1747090246266,-197.67485753,0.00013698,2]
[360869644,1747090246275,-400.0,0.00013698,2]
[360869645,1747090246283,-400.0,0.00013698,2]
[360869646,1747090246292,-400.0,0.00013698,2]
[360869647,1747090246301,-400.0,0.00013698,2]
[360869648,1747090246310,-400.0,0.00013698,2]
[360869649,1747090246319,-400.0,0.00013698,2]
[360869650,1747090246328,-400.0,0.00013698,2]
[360869651,1747090246337,-400.0,0.00013698,2]
[360869652,1747090246346,-400.0,0.00013698,2]
[360869653,1747090246355,-400.0,0.00013698,2]
[360869654,1747090246364,-400.0,0.00013698,2]
[360869655,1747090246373,-400.0,0.00013698,2]
[360869656,1747090246382,-400.0,0.00013698,2]
[360869657,1747090246392,-400.0,0.00013698,2]
[360869658,1747090246401,-400.0,0.00013698,2]
[360869659,1747090246410,-400.0,0.00013698,2]
[360869660,1747090246419,-400.0,0.00013698,2]
[360869661,1747090246428,-483.95,0.00013698,2]
[360869662,1747090246437,-400.0,0.00013698,2]
[360869663,1747090246451,-402.06963206,0.00013698,2]
[360869664,1747090246460,-400.0,0.00013698,2]
[360869666,1747090246470,-400.0,0.00013698,2]
[360869667,1747090246481,-400.0,0.00013698,2]
[360869669,1747090246491,-400.0,0.00013698,2]
[360869670,1747090246500,-400.0,0.00013698,2]
[360869671,1747090246509,-400.0,0.00013698,2]
[360869672,1747090246519,-400.0,0.00013698,2]
[360869673,1747090246528,-400.0,0.00013698,2]
[360869674,1747090246538,-279.85270678,0.00013698,2]
[360869675,1747090246548,-400.0,0.00013698,2]
[360869676,1747090246562,-400.0,0.00013698,2]
[360869677,1747090246571,-400.0,0.00013698,2]
[360869678,1747090246581,-313.10007095,0.00013698,2]
[360869679,1747090246590,-400.0,0.00013698,2]
[360869680,1747090246599,-22191.74,0.00013698,2]
[360869681,1747090246609,-400.0,0.00013698,2]
[360869682,1747090246620,-400.0,0.00013698,2]
[360869683,1747090246631,-521.13765372,0.00013698,2]
[360869684,1747090246640,-400.0,0.00013698,2]
[360869685,1747090246649,-400.0,0.00013698,2]
[360869686,1747090246659,-400.0,0.00013698,2]
[360869687,1747090246668,-1077.72,0.00013698,2]
[360869688,1747090246677,-400.0,0.00013698,2]
[360869689,1747090246686,-400.0,0.00013698,2]
[360869690,1747090246698,-157.076941,0.00013698,2]
[360869691,1747090246707,-400.0,0.00013698,2]
[360869692,1747090246716,-400.0,0.00013698,2]
[360869693,1747090246725,-398.04436202,0.00013698,2]
[360869694,1747090246734,-400.0,0.00013698,2]
[360869695,1747090246743,-1242.42,0.00013698,2]
[360869696,1747090246752,-8204.41,0.00013698,2]
[360869697,1747090246761,-400.0,0.00013698,2]
[360869698,1747090246770,-400.0,0.00013698,2]
[360869699,1747090246780,-1722.69,0.00013698,2]
[360869700,1747090246789,-168.2659632,0.00013698,2]
[360869701,1747090246798,-400.0,0.00013698,2]
[360869702,1747090246807,-400.0,0.00013698,2]
[360869703,1747090246816,-9161.74,0.00013698,2]
[360869704,1747090246825,-400.0,0.00013698,2]
[360869705,1747090246835,-400.0,0.00013698,2]
[360869706,1747090246844,-400.0,0.00013698,2]
[360869707,1747090246853,-406.4666124,0.00013698,2]
[360869708,1747090246862,-400.0,0.00013698,2]
[360869709,1747090246872,-281.37349023,0.00013698,2]
[360869710,1747090246881,-2383.23,0.00013698,2]
[360869711,1747090246890,-378.51,0.00013698,2]
[360869712,1747090246899,-400.0,0.00013698,2]
[360869713,1747090246909,-400.0,0.00013698,2]
[360869714,1747090246918,-400.0,0.00013698,2]
[360869715,1747090246927,-1779.51,0.00013698,2]
[360869716,1747090246936,-400.0,0.00013698,2]
[360869717,1747090246947,-400.0,0.00013698,2]
[360869718,1747090246957,-400.0,0.00013698,2]
[360869719,1747090246968,-501.77,0.00013698,2]
[360869720,1747090246981,-400.0,0.00013698,2]
[360869721,1747090246994,-1393.58,0.00013698,2]
[360869722,1747090247006,-400.0,0.00013698,2]
[360869723,1747090247016,-400.0,0.00013698,2]
[360869724,1747090247026,-1227.91,0.00013698,2]
[360869725,1747090247036,-250.0,0.00013698,2]
[360869726,1747090247045,-400.0,0.00013698,2]
[360869727,1747090247055,-534.29197332,0.00013698,2]
[360869728,1747090247064,-400.0,0.00013698,2]
[360869729,1747090247074,-479.64,0.00013698,2]
[360869730,1747090247083,-400.0,0.00013698,2]
[360869731,1747090247093,-3610.95,0.00013698,2]
[360869732,1747090247102,-523.98,0.00013698,2]
[360869733,1747090247111,-354.22638001,0.00013698,2]
[360869734,1747090247120,-400.0,0.00013698,2]
[360869735,1747090247129,-400.0,0.00013698,2]
[360869736,1747090247138,-519.74,0.00013698,2]
[360869737,1747090247147,-535.128314,0.00013698,2]
[360869738,1747090247156,-685.31,0.00013698,2]
[360869739,1747090247165,-535.128314,0.00013698,2]
[360869740,1747090247175,-474.90975149,0.00013698,2]
[360869741,1747090247184,-400.0,0.00013698,2]
[360869742,1747090247196,-400.0,0.00013698,2]
[360869743,1747090247205,-400.0,0.00013698,2]
[360869744,1747090247214,-400.0,0.00013698,2]
[360869745,1747090247227,-535.128314,0.00013698,2]
[360869746,1747090247247,-535.128314,0.00013698,2]
[360869747,1747090247261,-400.0,0.00013698,2]
[360869748,1747090247270,-400.0,0.00013698,2]
[360869749,1747090247279,-1340.79,0.00013698,2]
[360869750,1747090247288,-400.0,0.00013698,2]
[360869751,1747090247298,-400.0,0.00013698,2]
[360869752,1747090247308,-1784.89,0.00013698,2]
[360869753,1747090247465,-462.37843604,0.00013698,2]
[360869754,1747090247475,-151.0,0.00013698,2]
[360869755,1747090247484,-151.0,0.00013698,2]
[360869756,1747090247493,-400.0,0.00013698,2]
[360869757,1747090247503,-400.0,0.00013698,2]
[360869758,1747090247512,-400.0,0.00013698,2]
[360869759,1747090247522,-400.0,0.00013698,2]
[360869760,1747090247531,-1351.76,0.00013698,2]
[360869761,1747090247541,-400.0,0.00013698,2]
[360869762,1747090247550,-400.0,0.00013698,2]
[360869763,1747090247560,-400.0,0.00013698,2]
[360869764,1747090247569,-400.0,0.00013698,2]
[360869765,1747090247579,-400.0,0.00013698,2]
[360869766,1747090247588,-400.0,0.00013698,2]
[360869767,1747090247598,-400.0,0.00013698,2]
[360869768,1747090247607,-400.0,0.00013698,2]
[360869769,1747090247616,-1888.25,0.00013698,2]
[360869770,1747090247626,-400.0,0.00013698,2]
[360869771,1747090247635,-400.0,0.00013698,2]
[360869772,1747090247644,-400.0,0.00013698,2]
[360869773,1747090247653,-598.67,0.00013698,2]
[360869774,1747090247663,-1883.81,0.00013698,2]
[360869775,1747090247672,-988.13,0.00013698,2]
[360869776,1747090247682,-400.0,0.00013698,2]
[360869777,1747090247691,-1219.37,0.00013698,2]
[360869778,1747090247700,-400.0,0.00013698,2]
[360869779,1747090247709,-400.0,0.00013698,2]
[360869780,1747090247718,-491.59,0.00013698,2]
[360869781,1747090247727,-674.12,0.00013698,2]
[360869782,1747090247736,-1000.0,0.00013698,2]
[360869783,1747090247745,-433.79,0.00013698,2]
[360869784,1747090247754,-1174.28,0.00013698,2]
[360869785,1747090247763,-400.0,0.00013698,2]
[360869786,1747090247772,-400.0,0.00013698,2]
[360869787,1747090247781,-400.0,0.00013698,2]
[360869788,1747090247790,-503.82,0.00013698,2]
[360869789,1747090247799,-1144.55,0.00013698,2]
[360869790,1747090247808,-400.0,0.00013698,2]
[360869791,1747090247818,-400.0,0.00013698,2]
[360869792,1747090247827,-1062.2,0.00013698,2]
[360869793,1747090247836,-400.0,0.00013698,2]
[360869794,1747090247845,-400.0,0.00013698,2]
[360869795,1747090247854,-400.0,0.00013698,2]
[360869796,1747090247863,-400.0,0.00013698,2]
[360869797,1747090247872,-430.87296411,0.00013698,2]
[360869798,1747090247881,-400.0,0.00013698,2]
[360869799,1747090247891,-400.0,0.00013698,2]
[360869800,1747090247900,-400.0,0.00013698,2]
[360869801,1747090247910,-400.0,0.00013698,2]
[360869802,1747090247918,-400.0,0.00013698,2]
[360869803,1747090247928,-609.33,0.00013698,2]
[360869804,1747090247936,-647.84,0.00013698,2]
[360869805,1747090247945,-400.0,0.00013698,2]
[360869806,1747090247954,-400.0,0.00013698,2]
[360869807,1747090247964,-649.86,0.00013698,2]
[360869808,1747090247973,-1328.87,0.00013698,2]
[360869809,1747090247982,-400.0,0.00013698,2]
[360869810,1747090247991,-548.63,0.00013698,2]
[360869811,1747090248004,-400.0,0.00013698,2]
[360869812,1747090248014,-418.39574863,0.00013698,2]
[360869813,1747090248023,-403.82,0.00013698,2]
[360869814,1747090248032,-400.0,0.00013698,2]
[360869815,1747090248042,-1115.3,0.00013698,2]
[360869816,1747090248051,-400.0,0.00013698,2]
[360869817,1747090248060,-510.53,0.00013698,2]
[360869818,1747090248070,-400.0,0.00013698,2]
[360869819,1747090248081,-400.0,0.00013698,2]
[360869820,1747090248091,-400.0,0.00013698,2]
[360869821,1747090248100,-400.0,0.00013698,2]
[360869822,1747090248109,-400.0,0.00013698,2]
[360869823,1747090248119,-400.0,0.00013698,2]
[360869824,1747090248128,-400.0,0.00013698,2]
[360869825,1747090248137,-400.0,0.00013698,2]
[360869826,1747090248148,-947.34,0.00013698,2]
[360869827,1747090248157,-400.0,0.00013698,2]
[360869828,1747090248166,-473.1,0.00013698,2]
[360869829,1747090248175,-573.39,0.00013698,2]
[360869830,1747090248185,-1884.67,0.00013698,2]
[360869831,1747090248194,-400.0,0.00013698,2]
[360869832,1747090248203,-400.0,0.00013698,2]
[360869833,1747090248213,-400.0,0.00013698,2]
[360869834,1747090248222,-400.0,0.00013698,2]
[360869835,1747090248232,-400.0,0.00013698,2]
[360869836,1747090248241,-400.0,0.00013698,2]
[360869837,1747090248251,-465.16,0.00013698,2]
[360869838,1747090248260,-400.0,0.00013698,2]
[360869839,1747090248269,-400.0,0.00013698,2]
[360869840,1747090248279,-400.0,0.00013698,2]
[360869841,1747090248288,-400.0,0.00013698,2]
[360869842,1747090248297,-400.0,0.00013698,2]
[360869843,1747090248306,-400.0,0.00013698,2]
[360869844,1747090248315,-400.0,0.00013698,2]
[360869845,1747090248324,-400.0,0.00013698,2]
[360869846,1747090248333,-1107.81,0.00013698,2]
[360869847,1747090248342,-400.0,0.00013698,2]
[360869848,1747090248351,-400.0,0.00013698,2]
[360869849,1747090248360,-400.0,0.00013698,2]
[360869850,1747090248369,-1826.33,0.00013698,2]
[360869851,1747090248378,-400.0,0.00013698,2]
[360869852,1747090248388,-400.0,0.00013698,2]
[360869853,1747090248397,-400.0,0.00013698,2]
[360869854,1747090248406,-400.0,0.00013698,2]
[360869855,1747090248415,-400.0,0.00013698,2]
[360869856,1747090248425,-400.0,0.00013698,2]
[360869857,1747090248434,-400.0,0.00013698,2]
[360869858,1747090248443,-400.0,0.00013698,2]